fUSD/lending_fUSD_20240819
["ID","MTS","AMOUNT","RATE_DAILY","PERIOD"]
[335273783,1724062243550,-4188.76700319,0.00010998,2]
[335273786,1724062243572,-306.13299681,0.00010998,2]
[335273788,1724062243585,-705.08466985,0.00010998,2]
[335273791,1724062243598,-715.24533015,0.00010998,2]
[335273793,1724062243609,-4494.9,0.00010998,2]
[335273795,1724062243622,-1420.33,0.00010998,2]
[335273797,1724062243634,-4494.9,0.00010998,2]
[335273799,1724062243646,-1420.33,0.00010998,2]
[335273802,1724062243667,-1420.33,0.00010998,2]
[335273804,1724062243680,-5958.79,0.00010998,2]
[335273806,1724062243692,-5958.79,0.00010998,2]
[335273808,1724062243704,-5958.79,0.00010998,2]
[335273810,1724062243717,-5958.79,0.00010998,2]
[335273813,1724062243729,-1231.53534335,0.00010998,2]
[335273815,1724062243745,-4727.25465665,0.00010998,2]
[335273818,1724062243759,-3952.34040416,0.00010998,2]
[335273824,1724062243791,-1170.0,0.00010998,2]
[335273826,1724062243805,-500.283551,0.00010998,2]
[335274038,1724062246211,-582.42153888,0.00010896,2]
[335274043,1724062246253,-1567.26806875,0.00010896,2]
[335274052,1724062246328,-4112.58909237,0.00010896,2]
[335274054,1724062246338,-500.0,0.00010957,2]
[335274056,1724062246351,-500.0,0.00010993,2]
[335274059,1724062246362,-16520.81604484,0.00010998,2]
[335274061,1724062246373,-7383.99486279,0.00010998,2]
[335274063,1724062246386,-1294.63954852,0.00010998,2]
[335274065,1724062246399,-2308.78523856,0.00010998,2]
[335274068,1724062246421,-2660.46376001,0.00010998,2]
[335274231,1724062276897,840.0,9.85e-05,2]
[335274232,1724062282092,1509.2153,9.829e-05,2]
[335274233,1724062693093,173.54,8.219e-05,2]
[335274234,1724062906513,250.0,9.879e-05,2]
[335274236,1724063020608,2294.11,9.882e-05,2]
[335274271,1724063155011,154.82,9.85e-05,2]
[335274272,1724063181705,1967.05619835,9.899e-05,2]
[335274273,1724063201696,164.86,8.219e-05,2]
[335274281,1724063231971,801.98,9.85e-05,2]
[335274283,1724063304598,672.0,9.899e-05,2]
[335274285,1724063353800,-328.0,9.906e-05,2]
[335274287,1724063353831,-240.71,9.936e-05,2]
[335274289,1724063353860,-300.0,9.942e-05,2]
[335274291,1724063353891,-2906.62077953,9.943e-05,2]
[335274293,1724063353954,-3775.33077953,9.943e-05,2]
[335274294,1724063354028,-3775.33077953,9.943e-05,2]
[335274295,1724063354074,-560.16572995,9.943e-05,2]
[335274309,1724063432378,-932.64987514,9.926e-05,2]
[335274310,1724063432390,-932.64987513,9.997e-05,2]
[335274311,1724063432400,-914.7875464,0.0001,2]
[335274312,1724063432418,-135.2124536,0.0001,2]
[335274313,1724063432427,-437.58962321,0.0001,2]
[335274314,1724063432438,-325.3204652,0.0001,2]
[335274315,1724063432449,-320.77953073,0.00010009,2]
[335274316,1724063432458,-155.0,0.00010026,2]
[335274317,1724063432467,-263.23850038,0.00010097,2]
[335274318,1724063432477,-164.86,0.00010469,2]
[335274319,1724063432486,-57.21037103,0.00010471,2]
[335274320,1724063432502,-235.40013333,0.00010471,2]
[335274321,1724063432511,-64.28986677,0.00010791,2]
[335274322,1724063432522,-1033.7,0.00010791,2]
[335274323,1724063432533,-38902.01013323,0.00010791,2]
[335274324,1724063432543,-418.82,0.00010799,2]
[335274325,1724063432552,-526.35081385,0.00010799,2]
[335274326,1724063432562,-297.42341449,0.00010799,2]
[335274327,1724063432570,-3228.90922214,0.000108,2]
[335274328,1724063432579,-150.0,0.00010843,2]
[335274329,1724063432589,-3598.80553168,0.00010844,2]
[335274330,1724063432598,-3598.80553168,0.00010844,2]
[335274331,1724063432607,-197.09206619,0.00010852,2]
[335274332,1724063432616,-3598.80553168,0.00010855,2]
[335274334,1724063432626,-499.99,0.00010855,2]
[335274335,1724063432635,-3598.80553168,0.00010856,2]
[335274337,1724063432644,-33336.3907,0.00010857,2]
[335274339,1724063432654,-3598.80553168,0.00010862,2]
[335274341,1724063432664,-3598.80553168,0.00010865,2]
[335274343,1724063432673,-3598.80553168,0.00010866,2]
[335274345,1724063432683,-3598.80553168,0.00010876,2]
[335274347,1724063432693,-454.1136,0.00010876,2]
[335274349,1724063432703,-11611.98995666,0.0001088,2]
[335274351,1724063432712,-333.43189462,0.0001089,2]
[335274353,1724063432722,-531.49545144,0.0001089,2]
[335274355,1724063432731,-500.0,0.00010898,2]
[335274357,1724063432741,-500.0,0.00010898,2]
[335274359,1724063432751,-327.56976075,0.00010898,2]
[335274361,1724063432760,-500.0,0.00010898,2]
[335274363,1724063432769,-543.18989785,0.00010898,2]
[335274365,1724063432779,-156.4355,0.00010898,2]
[335274367,1724063432788,-10739.7021,0.00010898,2]
[335274369,1724063432797,-1000.0,0.00010898,2]
[335274371,1724063432807,-14034.28008237,0.00010899,2]
[335274373,1724063432816,-14034.28008231,0.00010899,2]
[335274375,1724063432825,-14034.28008231,0.00010899,2]
[335274377,1724063432834,-14034.28008231,0.00010899,2]
[335274379,1724063432843,-14034.28008231,0.00010899,2]
[335274381,1724063432853,-327.56976075,0.00010899,2]
[335274383,1724063432862,-14034.28008231,0.00010899,2]
[335274385,1724063432872,-14034.28008231,0.00010899,2]
[335274387,1724063432881,-14034.28008231,0.00010899,2]
[335274388,1724063432891,-14034.28008231,0.00010899,2]
[335274390,1724063432900,-150.0,0.000109,2]
[335274392,1724063432910,-327.56976075,0.000109,2]
[335274394,1724063432919,-14034.28008231,0.000109,2]
[335274396,1724063432928,-950.99650412,0.000109,2]
[335274398,1724063432938,-245.99237183,0.00010957,2]
[335274400,1724063432947,-902.5,0.00010959,2]
[335274402,1724063432956,-764.0,0.00010979,2]
[335274404,1724063432966,-660.679,0.00010979,2]
[335274406,1724063432975,-1674.801,0.00010979,2]
[335274408,1724063432984,-556.0,0.00010979,2]
[335274410,1724063432994,-408.967,0.00010979,2]
[335274412,1724063433003,-1078.564,0.00010979,2]
[335274414,1724063433013,-1018.85993565,0.0001098,3]
[335274416,1724063433022,-419.51001189,0.00010984,2]
[335274418,1724063433031,-478.10836051,0.00010984,2]
[335274420,1724063433041,-500.0,0.00010984,2]
[335274422,1724063433051,-500.0,0.00010984,2]
[335274423,1724063433060,-500.0,0.00010984,2]
[335274425,1724063433069,-500.0,0.00010984,2]
[335274427,1724063433079,-500.0,0.00010984,2]
[335274429,1724063433089,-541.14345299,0.00010984,2]
[335274430,1724063433098,-500.0,0.00010984,2]
[335274431,1724063433107,-500.0,0.00010984,2]
[335274432,1724063433116,-500.0,0.00010984,2]
[335274433,1724063433126,-500.0,0.00010984,2]
[335274434,1724063433135,-500.0,0.00010984,2]
[335274435,1724063433145,-500.0,0.00010984,2]
[335274436,1724063433154,-500.0,0.00010984,2]
[335274437,1724063433163,-500.0,0.00010984,2]
[335274438,1724063433173,-500.0,0.00010984,2]
[335274439,1724063433182,-523.59012449,0.00010984,2]
[335274440,1724063433191,-500.0,0.00010984,2]
[335274441,1724063433202,-500.0,0.00010984,2]
[335274442,1724063433211,-500.0,0.00010984,2]
[335274443,1724063433220,-500.0,0.00010984,2]
[335274444,1724063433229,-500.0,0.00010984,2]
[335274445,1724063433239,-500.0,0.00010984,2]
[335274446,1724063433248,-500.0,0.00010984,2]
[335274447,1724063433257,-995.7,0.00010985,2]
[335274448,1724063433267,-500.0,0.00010985,2]
[335274449,1724063433276,-500.0,0.00010985,2]
[335274450,1724063433285,-509.73,0.00010985,2]
[335274451,1724063433294,-150.81,0.00010988,2]
[335274452,1724063433303,-150.81,0.00010989,2]
[335274453,1724063433315,-150.81,0.00010989,2]
[335274454,1724063433325,-150.81,0.00010989,2]
[335274455,1724063433336,-150.81,0.00010989,2]
[335274456,1724063433345,-150.81,0.00010989,2]
[335274457,1724063433355,-150.81,0.00010989,2]
[335274458,1724063433365,-150.81,0.00010989,2]
[335274459,1724063433375,-150.81,0.00010989,2]
[335274460,1724063433384,-150.81,0.00010989,2]
[335274461,1724063433395,-995.7,0.00010992,2]
[335274462,1724063433407,-500.0,0.00010992,2]
[335274463,1724063433416,-500.0,0.00010992,2]
[335274464,1724063433426,-509.73,0.00010992,2]
[335274465,1724063433435,-155.0,0.00010993,2]
[335274466,1724063433445,-1101.83,0.00010995,2]
[335274467,1724063433456,-439.47641154,0.00010995,2]
[335274468,1724063433466,-542.7338556,0.00010995,2]
[335274469,1724063433476,-1297.51,0.00010995,2]
[335274470,1724063433485,-500.0,0.00010995,2]
[335274471,1724063433494,-935.14,0.00010995,2]
[335274472,1724063433504,-3241.36,0.00010995,2]
[335274473,1724063433513,-1407.16,0.00010995,2]
[335274474,1724063433522,-2996.6,0.00010995,2]
[335274475,1724063433532,-946.88,0.00010995,2]
[335274476,1724063433541,-3972.52,0.00010995,2]
[335274477,1724063433551,-17884.21,0.00010995,2]
[335274478,1724063433560,-1783.77,0.00010995,2]
[335274479,1724063433570,-3460.13,0.00010995,2]
[335274480,1724063433580,-4393.6,0.00010995,2]
[335274481,1724063433589,-2096.38,0.00010995,2]
[335274482,1724063433598,-3675.61,0.00010995,2]
[335274483,1724063433607,-390.27281715,0.00010995,2]
[335274496,1724063438279,-109.72718285,0.00010995,2]
[335274497,1724063438289,-500.0,0.00010996,2]
[335274498,1724063438299,-321.52957811,0.00010996,2]
[335274499,1724063438310,-324.02374733,0.00010996,2]
[335274501,1724063438321,-500.0,0.00010996,2]
[335274502,1724063438331,-155.33247643,0.00010996,2]
[335274503,1724063438341,-500.0,0.00010997,2]
[335274504,1724063438350,-578.47955071,0.00010997,2]
[335274505,1724063438362,-417.22044929,0.00010997,2]
[335274506,1724063438371,-500.0,0.00010997,2]
[335274507,1724063438380,-500.0,0.00010997,2]
[335274508,1724063438390,-1101.83,0.00010997,2]
[335274509,1724063438401,-509.73,0.00010997,2]
[335274510,1724063438410,-1297.51,0.00010997,2]
[335274511,1724063438419,-500.0,0.00010997,2]
[335274512,1724063438428,-500.0,0.00010997,2]
[335274513,1724063438437,-935.14,0.00010997,2]
[335274514,1724063438447,-3241.36,0.00010997,2]
[335274515,1724063438457,-1407.16,0.00010997,2]
[335274516,1724063438466,-2996.6,0.00010997,2]
[335274517,1724063438475,-500.0,0.00010997,2]
[335274518,1724063438485,-946.88,0.00010997,2]
[335274519,1724063438495,-3972.52,0.00010997,2]
[335274520,1724063438504,-5542.50004495,0.00010997,2]
[335274521,1724063438519,-11196.54312206,0.00010997,2]
[335274522,1724063438530,-1145.16683299,0.00010997,2]
[335274523,1724063438539,-1783.77,0.00010997,2]
[335274524,1724063438549,-3460.13,0.00010997,2]
[335274525,1724063438558,-4393.6,0.00010997,2]
[335274526,1724063438567,-500.0,0.00010997,2]
[335274527,1724063438576,-2096.38,0.00010997,2]
[335274528,1724063438586,-3675.61,0.00010997,2]
[335274529,1724063438596,-500.0,0.00010997,2]
[335274530,1724063438606,-5917.06257053,0.00010998,2]
[335274531,1724063438615,-200.0,0.00010998,2]
[335274532,1724063438625,-500.0,0.00010998,2]
[335274533,1724063438635,-500.0,0.00010998,2]
[335274534,1724063438645,-500.0,0.00010998,2]
[335274536,1724063438654,-995.7,0.00010998,2]
[335274538,1724063438664,-995.7,0.00010998,2]
[335274540,1724063438673,-995.7,0.00010998,2]
[335274542,1724063438683,-995.7,0.00010998,2]
[335274544,1724063438693,-995.7,0.00010998,2]
[335274546,1724063438702,-500.0,0.00010998,2]
[335274548,1724063438712,-500.0,0.00010998,2]
[335274549,1724063438722,-500.0,0.00010998,2]
[335274551,1724063438731,-274.98179648,0.00010998,2]
[335274554,1724063438743,-225.01820352,0.00010998,2]
[335274556,1724063438752,-500.0,0.00010998,2]
[335274558,1724063438761,-500.0,0.00010998,2]
[335274560,1724063438770,-1101.83,0.00010998,2]
[335274562,1724063438779,-500.0,0.00010998,2]
[335274564,1724063438788,-1101.83,0.00010998,2]
[335274566,1724063438797,-500.0,0.00010998,2]
[335274568,1724063438807,-1101.83,0.00010998,2]
[335274569,1724063438816,-500.0,0.00010998,2]
[335274571,1724063438826,-500.0,0.00010998,2]
[335274573,1724063438836,-509.73,0.00010998,2]
[335274575,1724063438846,-509.73,0.00010998,2]
[335274577,1724063438856,-509.73,0.00010998,2]
[335274579,1724063438866,-509.73,0.00010998,2]
[335274581,1724063438876,-509.73,0.00010998,2]
[335274583,1724063438886,-1297.51,0.00010998,2]
[335274585,1724063438896,-1297.51,0.00010998,2]
[335274587,1724063438905,-1297.51,0.00010998,2]
[335274589,1724063438915,-593.31179648,0.00010998,2]
[335274591,1724063438927,-945.33536352,0.00010998,2]
[335274593,1724063438936,-455.6,0.00010998,2]
[335274595,1724063438946,-500.0,0.00010998,2]
[335274597,1724063438957,-500.0,0.00010998,2]
[335274599,1724063438966,-500.0,0.00010998,2]
[335274601,1724063438976,-935.14,0.00010998,2]
[335274603,1724063438986,-935.14,0.00010998,2]
[335274604,1724063438996,-935.14,0.00010998,2]
[335274605,1724063439006,-3241.36,0.00010998,2]
[335274606,1724063439015,-3241.36,0.00010998,2]
[335274607,1724063439025,-3241.36,0.00010998,2]
[335274608,1724063439035,-1407.16,0.00010998,2]
[335274609,1724063439045,-1407.16,0.00010998,2]
[335274610,1724063439054,-1407.16,0.00010998,2]
[335274611,1724063439063,-2996.6,0.00010998,2]
[335274612,1724063439073,-1880.38498648,0.00010998,2]
[335274613,1724063439084,-1116.21501352,0.00010998,2]
[335274614,1724063439094,-2996.6,0.00010998,2]
[335274615,1724063439104,-500.0,0.00010998,2]
[335274616,1724063439114,-500.0,0.00010998,2]
[335274617,1724063439124,-500.0,0.00010998,2]
[335274618,1724063439133,-500.0,0.00010998,2]
[335274619,1724063439143,-946.88,0.00010998,2]
[335274620,1724063439152,-946.88,0.00010998,2]
[335274621,1724063439161,-946.88,0.00010998,2]
[335274622,1724063439171,-3972.52,0.00010998,2]
[335274623,1724063439181,-3972.52,0.00010998,2]
[335274624,1724063439190,-3972.52,0.00010998,2]
[335274625,1724063439199,-17884.21,0.00010998,2]
[335274626,1724063439209,-15415.32498648,0.00010998,2]
[335274627,1724063439221,-2468.88501352,0.00010998,2]
[335274628,1724063439230,-7084.26998248,0.00010998,2]
[335274629,1724063439242,-9084.2900005,0.00010998,2]
[335274630,1724063439253,-1715.65001702,0.00010998,2]
[335274631,1724063439263,-1783.77,0.00010998,2]
[335274632,1724063439272,-1783.77,0.00010998,2]
[335274634,1724063439281,-1783.77,0.00010998,2]
[335274636,1724063439291,-3460.13,0.00010998,2]
[335274638,1724063439301,-3197.14498298,0.00010998,2]
[335274640,1724063439316,-262.98501702,0.00010998,2]
[335274641,1724063439330,-1121.76498298,0.00010998,2]
[335274642,1724063439344,-2338.36501702,0.00010998,2]
[335274643,1724063439354,-3575.39867903,0.00010998,2]
[335274644,1724063439370,-818.20132097,0.00010998,2]
[335274645,1724063439380,-4393.6,0.00010998,2]
[335274646,1724063439389,-2082.86966073,0.00010998,2]
[335274647,1724063439401,-2310.73033927,0.00010998,2]
[335274648,1724063439409,-500.0,0.00010998,2]
[335274649,1724063439419,-2096.38,0.00010998,2]
[335274650,1724063439573,-2096.38,0.00010998,2]
[335274651,1724063439583,-2096.38,0.00010998,2]
[335274652,1724063439593,-3675.61,0.00010998,2]
[335274653,1724063439602,-3675.61,0.00010998,2]
[335274654,1724063439612,-3675.61,0.00010998,2]
[335274655,1724063439622,-500.0,0.00010998,2]
[335274656,1724063439631,-500.0,0.00010998,2]
[335274657,1724063439641,-500.0,0.00010998,2]
[335274658,1724063439650,-500.0,0.00010998,2]
[335274659,1724063439660,-523.89083524,0.00010998,2]
[335274660,1724063439669,-528.0,0.00010999,2]
[335274661,1724063439679,-1311.615,0.00010999,2]
[335274662,1724063439688,-500.0,0.00010999,2]
[335274663,1724063439697,-500.0,0.00010999,2]
[335274664,1724063439708,-500.0,0.00010999,2]
[335274665,1724063439717,-500.0,0.00010999,2]
[335274666,1724063439727,-566.78791363,0.00010999,2]
[335274667,1724063439736,-995.7,0.00010999,2]
[335274668,1724063439745,-634.21515987,0.00010999,2]
[335274684,1724063440436,-361.48484013,0.00010999,2]
[335274685,1724063440446,-995.7,0.00010999,2]
[335274686,1724063440456,-995.7,0.00010999,2]
[335274687,1724063440466,-995.7,0.00010999,2]
[335274688,1724063440475,-995.7,0.00010999,2]
[335274689,1724063440485,-995.7,0.00010999,2]
[335274690,1724063440494,-995.7,0.00010999,2]
[335274691,1724063440503,-995.7,0.00010999,2]
[335274692,1724063440513,-995.7,0.00010999,2]
[335274693,1724063440522,-995.7,0.00010999,2]
[335274694,1724063440533,-995.7,0.00010999,2]
[335274695,1724063440541,-995.7,0.00010999,2]
[335274696,1724063440550,-995.7,0.00010999,2]
[335274697,1724063440560,-995.7,0.00010999,2]
[335274698,1724063440569,-995.86,0.00010999,2]
[335274699,1724063440578,-500.0,0.00010999,2]
[335274700,1724063440588,-500.0,0.00010999,2]
[335274701,1724063440598,-500.0,0.00010999,2]
[335274702,1724063440607,-500.0,0.00010999,2]
[335274703,1724063440617,-500.0,0.00010999,2]
[335274704,1724063440627,-500.0,0.00010999,2]
[335274705,1724063440636,-500.0,0.00010999,2]
[335274706,1724063440646,-500.0,0.00010999,2]
[335274707,1724063440655,-500.0,0.00010999,2]
[335274708,1724063440665,-500.0,0.00010999,2]
[335274709,1724063440674,-500.0,0.00010999,2]
[335274710,1724063440684,-500.0,0.00010999,2]
[335274711,1724063440693,-604.71897199,0.00010999,2]
[335274712,1724063440703,-1101.83,0.00010999,2]
[335274713,1724063440713,-500.0,0.00010999,2]
[335274714,1724063440722,-1101.83,0.00010999,2]
[335274715,1724063440732,-500.0,0.00010999,2]
[335274716,1724063440742,-1101.83,0.00010999,2]
[335274717,1724063440751,-500.0,0.00010999,2]
[335274718,1724063440760,-1101.83,0.00010999,2]
[335274719,1724063440770,-500.0,0.00010999,2]
[335274720,1724063440779,-500.0,0.00010999,2]
[335274721,1724063440789,-1101.83,0.00010999,2]
[335274722,1724063440798,-500.0,0.00010999,2]
[335274723,1724063440807,-1101.83,0.00010999,2]
[335274724,1724063440817,-500.0,0.00010999,2]
[335274725,1724063440826,-1101.83,0.00010999,2]
[335274726,1724063440835,-500.0,0.00010999,2]
[335274727,1724063440845,-500.0,0.00010999,2]
[335274728,1724063440854,-1101.83,0.00010999,2]
[335274729,1724063440863,-261.34640759,0.00010999,2]
[335274730,1724063440873,-1101.83,0.00010999,2]
[335274731,1724063440882,-1101.83,0.00010999,2]
[335274732,1724063440891,-1101.83,0.00010999,2]
[335274733,1724063440901,-1101.83,0.00010999,2]
[335274734,1724063440910,-1101.83,0.00010999,2]
[335274735,1724063440920,-1101.83,0.00010999,2]
[335274736,1724063440929,-1101.83,0.00010999,2]
[335274737,1724063440938,-1101.83,0.00010999,2]
[335274738,1724063440947,-1101.83,0.00010999,2]
[335274739,1724063440960,-1101.83,0.00010999,2]
[335274740,1724063440969,-181.42003365,0.00010999,2]
[335274741,1724063441004,-617.23,0.00010999,2]
[335274743,1724063441017,-303.36052427,0.00010999,2]
[335274744,1724063441026,-509.73,0.00010999,2]
[335274746,1724063441037,-509.73,0.00010999,2]
[335274748,1724063441048,-509.73,0.00010999,2]
[335274750,1724063441059,-509.73,0.00010999,2]
[335274752,1724063441068,-509.73,0.00010999,2]
[335274754,1724063441078,-509.73,0.00010999,2]
[335274756,1724063441088,-509.73,0.00010999,2]
[335274758,1724063441098,-509.73,0.00010999,2]
[335274760,1724063441108,-509.73,0.00010999,2]
[335274762,1724063441117,-509.73,0.00010999,2]
[335274764,1724063441127,-509.73,0.00010999,2]
[335274766,1724063441137,-509.73,0.00010999,2]
[335274769,1724063441148,-509.73,0.00010999,2]
[335274771,1724063441158,-509.73,0.00010999,2]
[335274773,1724063441167,-509.73,0.00010999,2]
[335274775,1724063441176,-509.89231694,0.00010999,2]
[335274777,1724063441185,-1297.51,0.00010999,2]
[335274779,1724063441194,-1297.51,0.00010999,2]
[335274781,1724063441204,-1297.51,0.00010999,2]
[335274783,1724063441214,-1297.51,0.00010999,2]
[335274785,1724063441223,-1297.51,0.00010999,2]
[335274787,1724063441232,-1297.51,0.00010999,2]
[335274789,1724063441241,-1297.51,0.00010999,2]
[335274792,1724063441251,-1297.51,0.00010999,2]
[335274794,1724063441262,-1297.51,0.00010999,2]
[335274796,1724063441271,-1297.51,0.00010999,2]
[335274798,1724063441281,-1297.51,0.00010999,2]
[335274800,1724063441291,-1297.51,0.00010999,2]
[335274802,1724063441301,-1297.51,0.00010999,2]
[335274804,1724063441311,-1297.51,0.00010999,2]
[335274805,1724063441325,-1297.51,0.00010999,2]
[335274806,1724063441335,-1297.51,0.00010999,2]
[335274807,1724063441345,-1297.51,0.00010999,2]
[335274808,1724063441355,-1297.51,0.00010999,2]
[335274809,1724063441365,-1297.56917875,0.00010999,2]
[335274810,1724063441375,-500.0,0.00010999,2]
[335274811,1724063441384,-500.0,0.00010999,2]
[335274812,1724063441394,-157.50292237,0.00010999,2]
[335274813,1724063441404,-935.14,0.00010999,2]
[335274814,1724063441413,-935.14,0.00010999,2]
[335274815,1724063441423,-935.14,0.00010999,2]
[335274816,1724063441432,-935.14,0.00010999,2]
[335274817,1724063441441,-935.14,0.00010999,2]
[335274818,1724063441451,-935.14,0.00010999,2]
[335274820,1724063441462,-935.14,0.00010999,2]
[335274822,1724063441471,-935.14,0.00010999,2]
[335274824,1724063441481,-935.14,0.00010999,2]
[335274826,1724063441491,-935.14,0.00010999,2]
[335274828,1724063441500,-935.14,0.00010999,2]
[335274830,1724063441510,-935.14,0.00010999,2]
[335274833,1724063441519,-935.14,0.00010999,2]
[335274835,1724063441528,-935.14,0.00010999,2]
[335274837,1724063441537,-935.14,0.00010999,2]
[335274839,1724063441547,-935.14,0.00010999,2]
[335274841,1724063441556,-935.14,0.00010999,2]
[335274843,1724063441565,-935.14,0.00010999,2]
[335274845,1724063441574,-935.26,0.00010999,2]
[335274847,1724063441584,-3241.36,0.00010999,2]
[335274849,1724063441594,-3241.36,0.00010999,2]
[335274852,1724063441605,-3241.36,0.00010999,2]
[335274854,1724063441617,-3241.36,0.00010999,2]
[335274856,1724063441629,-3241.36,0.00010999,2]
[335274858,1724063441639,-3241.36,0.00010999,2]
[335274860,1724063441649,-3241.36,0.00010999,2]
[335274862,1724063441658,-3241.36,0.00010999,2]
[335274864,1724063441667,-3241.36,0.00010999,2]
[335274866,1724063441676,-3241.36,0.00010999,2]
[335274868,1724063441686,-3241.36,0.00010999,2]
[335274870,1724063441695,-3241.36,0.00010999,2]
[335274873,1724063441704,-3241.36,0.00010999,2]
[335274875,1724063441714,-3241.36,0.00010999,2]
[335274876,1724063441723,-3241.36,0.00010999,2]
[335274877,1724063441732,-3241.36,0.00010999,2]
[335274878,1724063441742,-3241.36,0.00010999,2]
[335274879,1724063441751,-3241.36,0.00010999,2]
[335274880,1724063441761,-3241.45777229,0.00010999,2]
[335274881,1724063441770,-1407.16,0.00010999,2]
[335274882,1724063441779,-1407.16,0.00010999,2]
[335274883,1724063441788,-1407.16,0.00010999,2]
[335274884,1724063441797,-1407.16,0.00010999,2]
[335274885,1724063441808,-1407.16,0.00010999,2]
[335274886,1724063441820,-1407.16,0.00010999,2]
[335274887,1724063441830,-1407.16,0.00010999,2]
[335274888,1724063441840,-1407.16,0.00010999,2]
[335274889,1724063441849,-1407.16,0.00010999,2]
[335274890,1724063441859,-1407.16,0.00010999,2]
[335274891,1724063441870,-1407.16,0.00010999,2]
[335274892,1724063441879,-1407.16,0.00010999,2]
[335274893,1724063441889,-1407.16,0.00010999,2]
[335274894,1724063441900,-1407.16,0.00010999,2]
[335274895,1724063441910,-1407.16,0.00010999,2]
[335274896,1724063441919,-1407.16,0.00010999,2]
[335274897,1724063441928,-1407.16,0.00010999,2]
[335274898,1724063441938,-1407.16,0.00010999,2]
[335274899,1724063441947,-1407.36702699,0.00010999,2]
[335274900,1724063441957,-1028.61195595,0.00010999,2]
[335274901,1724063442116,-1967.98804405,0.00010999,2]
[335274902,1724063442127,-2996.6,0.00010999,2]
[335274903,1724063442136,-2996.6,0.00010999,2]
[335274904,1724063442145,-2996.6,0.00010999,2]
[335274905,1724063442154,-2996.6,0.00010999,2]
[335274906,1724063442164,-2996.6,0.00010999,2]
[335274907,1724063442173,-2996.6,0.00010999,2]
[335274908,1724063442182,-2996.6,0.00010999,2]
[335274909,1724063442192,-2996.6,0.00010999,2]
[335274910,1724063442202,-2996.6,0.00010999,2]
[335274911,1724063442214,-2996.6,0.00010999,2]
[335274912,1724063442223,-2996.6,0.00010999,2]
[335274913,1724063442233,-2996.6,0.00010999,2]
[335274914,1724063442242,-2996.6,0.00010999,2]
[335274915,1724063442251,-2996.6,0.00010999,2]
[335274916,1724063442261,-2996.6,0.00010999,2]
[335274917,1724063442271,-2996.6,0.00010999,2]
[335274918,1724063442280,-2996.6,0.00010999,2]
[335274919,1724063442290,-2996.74941012,0.00010999,2]
[335274920,1724063442300,-500.0,0.00010999,2]
[335274921,1724063442311,-500.0,0.00010999,2]
[335274922,1724063442324,-500.0,0.00010999,2]
[335274923,1724063442335,-500.0,0.00010999,2]
[335274924,1724063442345,-500.0,0.00010999,2]
[335274925,1724063442355,-500.0,0.00010999,2]
[335274926,1724063442365,-500.0,0.00010999,2]
[335274927,1724063442374,-500.0,0.00010999,2]
[335274928,1724063442384,-428.19091754,0.00010999,2]
[335274929,1724063442396,-71.80908246,0.00010999,2]
[335274930,1724063442406,-187.13091754,0.00010999,2]
[335274931,1724063442417,-294.57908246,0.00010999,2]
[335274932,1724063442427,-946.88,0.00010999,2]
[335274933,1724063442436,-91.85899622,0.00010999,2]
[335274934,1724063442447,-855.02100378,0.00010999,2]
[335274935,1724063442459,-146.78861609,0.00010999,2]
[335274936,1724063442470,-495.55389865,0.00010999,2]
[335274937,1724063442486,-304.53748526,0.00010999,2]
[335274938,1724063442495,-946.88,0.00010999,2]